fUSD/lending_fUSD_20240428
["ID","MTS","AMOUNT","RATE_DAILY","PERIOD"]
[323788348,1714301454644,-1055.6,0.00013698,2]
[323788349,1714301454653,-500.0,0.00013698,2]
[323788350,1714301454662,-2658.58,0.00013698,2]
[323788351,1714301454671,-1072.33,0.00013698,2]
[323788352,1714301454681,-3448.33,0.00013698,2]
[323788353,1714301454690,-500.0,0.00013698,2]
[323788354,1714301454699,-506.49089233,0.00013698,2]
[323788355,1714301454708,-1118.09,0.00013698,2]
[323788356,1714301454716,-657.96,0.00013698,2]
[323788357,1714301454726,-500.0,0.00013698,2]
[323788358,1714301454736,-512.87,0.00013698,2]
[323788359,1714301454745,-500.0,0.00013698,2]
[323788360,1714301454754,-500.0,0.00013698,2]
[323788361,1714301454763,-976.14,0.00013698,2]
[323788362,1714301454771,-500.0,0.00013698,2]
[323788363,1714301454781,-673.28,0.00013698,2]
[323788364,1714301454789,-500.0,0.00013698,2]
[323788365,1714301454798,-653.35,0.00013698,2]
[323788366,1714301454807,-500.0,0.00013698,2]
[323788367,1714301454816,-1455.38,0.00013698,2]
[323788368,1714301454825,-10052.89,0.00013698,2]
[323788369,1714301454834,-500.0,0.00013698,2]
[323788370,1714301454843,-532.43,0.00013698,2]
[323788371,1714301454852,-500.0,0.00013698,2]
[323788372,1714301454861,-500.0,0.00013698,2]
[323788373,1714301454870,-1415.48,0.00013698,2]
[323788374,1714301454879,-500.0,0.00013698,2]
[323788375,1714301454888,-1221.56,0.00013698,2]
[323788376,1714301454898,-754.97,0.00013698,2]
[323788377,1714301454907,-500.0,0.00013698,2]
[323788378,1714301454917,-500.1670451,0.00013698,2]
[323788379,1714301455126,-500.0,0.00013698,2]
[323788380,1714301455135,-679.84,0.00013698,2]
[323788381,1714301455146,-1128.28,0.00013698,2]
[323788382,1714301455155,-500.0,0.00013698,2]
[323788383,1714301455164,-864.63,0.00013698,2]
[323788384,1714301455173,-1423.09,0.00013698,2]
[323788385,1714301455183,-2789.97,0.00013698,2]
[323788386,1714301455194,-500.0,0.00013698,2]
[323788387,1714301455203,-1082.37,0.00013698,2]
[323788388,1714301455212,-3716.87,0.00013698,2]
[323788389,1714301455221,-528.78,0.00013698,2]
[323788390,1714301455231,-1816.6,0.00013698,2]
[323788391,1714301455240,-630.34,0.00013698,2]
[323788392,1714301455250,-740.5,0.00013698,2]
[323788393,1714301455259,-2942.3,0.00013698,2]
[323788394,1714301455268,-6271.16,0.00013698,2]
[323788395,1714301455278,-1833.59,0.00013698,2]
[323788396,1714301455288,-500.0,0.00013698,2]
[323788397,1714301455299,-500.0,0.00013698,2]
[323788398,1714301455308,-500.0,0.00013698,2]
[323788399,1714301455317,-500.0,0.00013698,2]
[323788400,1714301455326,-1794.83,0.00013698,2]
[323788401,1714301455335,-500.0,0.00013698,2]
[323788402,1714301455344,-500.0,0.00013698,2]
[323788403,1714301455353,-500.0,0.00013698,2]
[323788404,1714301455363,-500.0,0.00013698,2]
[323788405,1714301455374,-500.0,0.00013698,2]
[323788406,1714301455384,-2432.55,0.00013698,2]
[323788407,1714301455394,-514.55,0.00013698,2]
[323788408,1714301455404,-1810.28,0.00013698,2]
[323788409,1714301455414,-1042.07,0.00013698,2]
[323788410,1714301455425,-500.0,0.00013698,2]
[323788411,1714301455435,-1606.21,0.00013698,2]
[323788412,1714301455444,-500.0,0.00013698,2]
[323788413,1714301455455,-2686.54,0.00013698,2]
[323788414,1714301455464,-1949.11,0.00013698,2]
[323788415,1714301455474,-2269.72,0.00013698,2]
[323788416,1714301455483,-500.0,0.00013698,2]
[323788417,1714301455493,-500.0,0.00013698,2]
[323788418,1714301455503,-814.09,0.00013698,2]
[323788419,1714301455514,-500.0,0.00013698,2]
[323788420,1714301455523,-500.0,0.00013698,2]
[323788421,1714301455533,-500.0,0.00013698,2]
[323788422,1714301455542,-500.0,0.00013698,2]
[323788423,1714301455552,-500.0,0.00013698,2]
[323788424,1714301455563,-500.0,0.00013698,2]
[323788425,1714301455573,-500.0,0.00013698,2]
[323788426,1714301455583,-1000.0,0.00013699,2]
[323788427,1714301455592,-573.03,0.00013699,2]
[323788428,1714301455602,-200.0,0.00013699,2]
[323788429,1714301455611,-250.0,0.00013699,2]
[323788430,1714301455620,-2751.0,0.00013699,2]
[323788431,1714301455630,-500.0,0.00013699,2]
[323788432,1714301455639,-4300.0,0.000137,5]
[323788433,1714301455648,-1000.0,0.00013768,2]
[323788434,1714301455657,-5800.0,0.000138,5]
[323788435,1714301455666,-167.1,0.000138,2]
[323788436,1714301455676,-251.60942956,0.00013872,2]
[323788437,1714301455684,-306.91702478,0.00013872,2]
[323788438,1714301455693,-725.78968456,0.00013872,2]
[323788439,1714301455702,-7200.0,0.000139,5]
[323788440,1714301455712,-153.40066271,0.00013938,2]
[323788441,1714301455721,-313.87560554,0.0001397,2]
[323788442,1714301455730,-155.0,0.0001397,2]
[323788443,1714301455739,-377.45376764,0.0001397,2]
[323788444,1714301455748,-500.0,0.00013971,2]
[323788445,1714301455757,-500.0,0.00013971,2]
[323788446,1714301455767,-500.0,0.00013971,2]
[323788447,1714301455776,-500.0,0.00013971,2]
[323788448,1714301455785,-4103.11,0.00013971,2]
[323788449,1714301455795,-4103.11,0.00013971,2]
[323788450,1714301455807,-4103.11,0.00013971,2]
[323788451,1714301455816,-4103.11,0.00013971,2]
[323788452,1714301455826,-4103.11,0.00013971,2]
[323788453,1714301455835,-2448.14,0.00013971,2]
[323788454,1714301455845,-2448.14,0.00013971,2]
[323788455,1714301455854,-2448.14,0.00013971,2]
[323788456,1714301455863,-2448.14,0.00013971,2]
[323788457,1714301455872,-2448.14,0.00013971,2]
[323788458,1714301455882,-502.83550002,0.00013972,2]
[323788459,1714301455891,-500.0,0.00013972,2]
[323788460,1714301455901,-500.0,0.00013972,2]
[323788461,1714301455912,-502.06713549,0.00013972,2]
[323788462,1714301455925,-425.69082424,0.00013972,2]
[323788463,1714301455936,-500.0,0.00013972,2]
[323788464,1714301455946,-500.0,0.00013972,2]
[323788465,1714301455956,-500.0,0.00013972,2]
[323788466,1714301455965,-504.4694461,0.00013972,2]
[323788467,1714301455975,-500.0,0.00013972,2]
[323788468,1714301455985,-500.0,0.00013972,2]
[323788469,1714301455996,-223.28470274,0.00013972,2]
[323788470,1714301456005,-500.0,0.00013972,2]
[323788471,1714301456014,-498.73429236,0.00013972,2]
[323788472,1714301456025,-500.0,0.00013972,2]
[323788473,1714301456036,-595.53114986,0.00013972,2]
[323788474,1714301456046,-169.6475374,0.00013972,2]
[323788475,1714301456058,-500.0,0.00013972,2]
[323788476,1714301456067,-501.91186619,0.00013972,2]
[323788477,1714301456076,-500.0,0.00013972,2]
[323788478,1714301456087,-500.0,0.00013972,2]
[323788479,1714301456098,-1290.61,0.00013972,2]
[323788480,1714301456107,-516.78,0.00013972,2]
[323788481,1714301456117,-500.0,0.00013972,2]
[323788482,1714301456125,-788.55,0.00013972,2]
[323788483,1714301456135,-500.0,0.00013972,2]
[323788484,1714301456145,-1310.94,0.00013972,2]
[323788485,1714301456154,-500.0,0.00013972,2]
[323788486,1714301456164,-500.0,0.00013972,2]
[323788487,1714301456173,-500.0,0.00013972,2]
[323788488,1714301456183,-500.0,0.00013972,2]
[323788489,1714301456193,-500.0,0.00013972,2]
[323788490,1714301456202,-500.0,0.00013972,2]
[323788491,1714301456212,-936.84,0.00013972,2]
[323788492,1714301456221,-500.0,0.00013972,2]
[323788493,1714301456230,-500.0,0.00013972,2]
[323788494,1714301456240,-500.0,0.00013972,2]
[323788495,1714301456249,-635.33750249,0.00013972,2]
[323788496,1714301456259,-500.0,0.00013972,2]
[323788497,1714301456268,-533.18,0.00013972,2]
[323788498,1714301456278,-500.0,0.00013972,2]
[323788499,1714301456288,-500.0,0.00013972,2]
[323788500,1714301456297,-500.0,0.00013972,2]
[323788501,1714301456306,-500.0,0.00013972,2]
[323788502,1714301456315,-500.0,0.00013972,2]
[323788503,1714301456325,-536.86,0.00013972,2]
[323788504,1714301456335,-500.0,0.00013972,2]
[323788505,1714301456344,-500.0,0.00013972,2]
[323788506,1714301456353,-500.0,0.00013972,2]
[323788507,1714301456363,-500.0,0.00013972,2]
[323788508,1714301456372,-501.26421167,0.00013972,2]
[323788509,1714301456382,-500.0,0.00013972,2]
[323788510,1714301456391,-537.52,0.00013972,2]
[323788511,1714301456402,-500.0,0.00013972,2]
[323788512,1714301456411,-946.24,0.00013972,2]
[323788513,1714301456420,-500.0,0.00013972,2]
[323788514,1714301456430,-500.0,0.00013972,2]
[323788515,1714301456440,-500.0,0.00013972,2]
[323788516,1714301456449,-500.0,0.00013972,2]
[323788517,1714301456458,-951.03,0.00013972,2]
[323788518,1714301456468,-500.0,0.00013972,2]
[323788519,1714301456478,-970.99217447,0.00013972,2]
[323788520,1714301456488,-500.0,0.00013972,2]
[323788521,1714301456498,-500.0,0.00013972,2]
[323788522,1714301456507,-507.01,0.00013972,2]
[323788523,1714301456516,-500.0,0.00013972,2]
[323788524,1714301456526,-500.0,0.00013972,2]
[323788525,1714301456536,-500.0,0.00013972,2]
[323788526,1714301456546,-866.14,0.00013972,2]
[323788527,1714301456555,-500.0,0.00013972,2]
[323788528,1714301456565,-1832.61,0.00013972,2]
[323788529,1714301456575,-500.0,0.00013972,2]
[323788530,1714301456583,-500.0,0.00013972,2]
[323788531,1714301456593,-625.67,0.00013972,2]
[323788532,1714301456603,-169.50192926,0.00013972,2]
[323788533,1714301456612,-500.0,0.00013972,2]
[323788534,1714301456622,-500.0,0.00013972,2]
[323788535,1714301456632,-500.0,0.00013972,2]
[323788536,1714301456642,-507.17656984,0.00013972,2]
[323788537,1714301456652,-503.73,0.00013972,2]
[323788538,1714301456662,-309.5764496,0.00013972,2]
[323788539,1714301456671,-1272.36,0.00013972,2]
[323788540,1714301456681,-500.0,0.00013972,2]
[323788541,1714301456690,-500.0,0.00013972,2]
[323788542,1714301456699,-500.0,0.00013972,2]
[323788543,1714301456708,-500.0,0.00013972,2]
[323788544,1714301456718,-1509.71,0.00013972,2]
[323788545,1714301456727,-500.0,0.00013972,2]
[323788546,1714301456736,-500.0,0.00013972,2]
[323788547,1714301456746,-580.73509779,0.00013972,2]
[323788548,1714301456755,-703.49,0.00013972,2]
[323788549,1714301456765,-500.0,0.00013972,2]
[323788550,1714301456774,-566.16,0.00013972,2]
[323788551,1714301456783,-500.0,0.00013972,2]
[323788552,1714301456792,-500.0,0.00013972,2]
[323788553,1714301456801,-500.0,0.00013972,2]
[323788554,1714301456810,-500.0,0.00013972,2]
[323788555,1714301456821,-500.0,0.00013972,2]
[323788556,1714301456832,-500.0,0.00013972,2]
[323788557,1714301456842,-500.0,0.00013972,2]
[323788558,1714301456852,-350.16690261,0.00013972,2]
[323788559,1714301456861,-500.0,0.00013972,2]
[323788560,1714301456870,-576.43,0.00013972,2]
[323788561,1714301456880,-500.0,0.00013972,2]
[323788562,1714301456889,-524.9,0.00013972,2]
[323788563,1714301456898,-505.21585468,0.00013972,2]
[323788564,1714301456907,-500.0,0.00013972,2]
[323788565,1714301456917,-541.13,0.00013972,2]
[323788566,1714301456928,-500.0,0.00013972,2]
[323788567,1714301456937,-1061.53,0.00013972,2]
[323788568,1714301456947,-784.1,0.00013972,2]
[323788569,1714301456956,-500.0,0.00013972,2]
[323788570,1714301456966,-500.0,0.00013972,2]
[323788571,1714301456975,-500.0,0.00013972,2]
[323788572,1714301456985,-500.0,0.00013972,2]
[323788573,1714301456994,-500.0,0.00013972,2]
[323788574,1714301457005,-500.0,0.00013972,2]
[323788575,1714301457015,-1509.12,0.00013972,2]
[323788576,1714301457024,-500.0,0.00013972,2]
[323788577,1714301457034,-500.0,0.00013972,2]
[323788578,1714301457044,-502.2211546,0.00013972,2]
[323788579,1714301457054,-500.0,0.00013972,2]
[323788580,1714301457064,-500.0,0.00013972,2]
[323788581,1714301457074,-500.0,0.00013972,2]
[323788582,1714301457084,-1036.79,0.00013972,2]
[323788583,1714301457094,-500.0,0.00013972,2]
[323788584,1714301457103,-506.82795483,0.00013972,2]
[323788585,1714301457112,-500.0,0.00013972,2]
[323788586,1714301457122,-851.25,0.00013972,2]
[323788587,1714301457131,-500.0,0.00013972,2]
[323788588,1714301457141,-500.0,0.00013972,2]
[323788589,1714301457152,-500.0,0.00013972,2]
[323788590,1714301457161,-500.0,0.00013972,2]
[323788591,1714301457170,-542.55,0.00013972,2]
[323788592,1714301457180,-500.0,0.00013972,2]
[323788593,1714301457189,-500.0,0.00013972,2]
[323788594,1714301457198,-500.0,0.00013972,2]
[323788595,1714301457208,-500.0,0.00013972,2]
[323788596,1714301457217,-500.0,0.00013972,2]
[323788597,1714301457227,-500.0,0.00013972,2]
[323788598,1714301457236,-500.0,0.00013972,2]
[323788599,1714301457245,-500.0,0.00013972,2]
[323788600,1714301457254,-500.0,0.00013972,2]
[323788601,1714301457263,-500.0,0.00013972,2]
[323788602,1714301457273,-500.0,0.00013972,2]
[323788603,1714301457282,-506.53,0.00013972,2]
[323788604,1714301457291,-500.0,0.00013972,2]
[323788605,1714301457300,-500.0,0.00013972,2]
[323788606,1714301457310,-500.0,0.00013972,2]
[323788607,1714301457320,-615.59,0.00013972,2]
[323788608,1714301457330,-500.0,0.00013972,2]
[323788609,1714301457339,-1045.32410421,0.00013972,2]
[323788610,1714301457348,-500.0,0.00013972,2]
[323788611,1714301457357,-500.0,0.00013972,2]
[323788612,1714301457367,-763.7,0.00013972,2]
[323788613,1714301457376,-500.0,0.00013972,2]
[323788614,1714301457386,-503.8,0.00013972,2]
[323788615,1714301457395,-493.64979896,0.00013972,2]
[323788616,1714301457404,-500.0,0.00013972,2]
[323788617,1714301457413,-500.0,0.00013972,2]
[323788618,1714301457423,-500.0,0.00013972,2]
[323788619,1714301457433,-500.0,0.00013972,2]
[323788620,1714301457442,-509.72743294,0.00013972,2]
[323788621,1714301457453,-500.0,0.00013972,2]
[323788622,1714301457463,-500.0,0.00013972,2]
[323788623,1714301457473,-500.0,0.00013972,2]
[323788624,1714301457482,-527.06,0.00013972,2]
[323788625,1714301457492,-918.55,0.00013972,2]
[323788626,1714301457501,-500.0,0.00013972,2]
[323788627,1714301457511,-519.73,0.00013972,2]
[323788628,1714301457521,-543.99,0.00013972,2]
[323788629,1714301457530,-500.0,0.00013972,2]
[323788630,1714301457539,-312.94288838,0.00013972,2]
[323788631,1714301457548,-500.0,0.00013972,2]
[323788632,1714301457557,-500.0,0.00013972,2]
[323788633,1714301457567,-500.0,0.00013972,2]
[323788634,1714301457576,-500.0,0.00013972,2]
[323788635,1714301457585,-518.83040225,0.00013972,2]
[323788636,1714301457594,-1061.2,0.00013972,2]
[323788637,1714301457604,-2038.88,0.00013972,2]
[323788638,1714301457613,-2064.46,0.00013972,2]
[323788639,1714301457621,-500.0,0.00013972,2]
[323788640,1714301457630,-1238.19,0.00013972,2]
[323788641,1714301457639,-500.0,0.00013972,2]
[323788642,1714301457648,-500.0,0.00013972,2]
[323788643,1714301457658,-500.0,0.00013972,2]
[323788644,1714301457667,-500.0,0.00013972,2]
[323788645,1714301457678,-508.85485701,0.00013972,2]
[323788646,1714301457687,-500.0,0.00013972,2]
[323788647,1714301457696,-507.25,0.00013972,2]
[323788648,1714301457705,-511.34,0.00013972,2]
[323788649,1714301457714,-500.0,0.00013972,2]
[323788650,1714301457723,-500.0,0.00013972,2]
[323788651,1714301457732,-500.0,0.00013972,2]
[323788652,1714301457741,-507.26291419,0.00013972,2]
[323788653,1714301457751,-704.71,0.00013972,2]
[323788654,1714301457760,-500.0,0.00013972,2]
[323788655,1714301457769,-1200.2,0.00013972,2]
[323788656,1714301457779,-1053.05,0.00013972,2]
[323788657,1714301457789,-500.0,0.00013972,2]
[323788658,1714301457799,-507.14,0.00013972,2]
[323788659,1714301457808,-1368.26,0.00013972,2]
[323788660,1714301457818,-500.0,0.00013972,2]
[323788661,1714301457828,-567.02755864,0.00013972,2]
[323788662,1714301457837,-500.0,0.00013972,2]
[323788663,1714301457847,-537.07,0.00013972,2]
[323788664,1714301457856,-500.0,0.00013972,2]
[323788665,1714301457865,-510.1034361,0.00013972,2]
[323788666,1714301457875,-500.0,0.00013972,2]
[323788667,1714301457884,-500.0,0.00013972,2]
[323788668,1714301457895,-500.0,0.00013972,2]
[323788669,1714301457905,-1897.49,0.00013972,2]
[323788670,1714301457914,-680.99,0.00013972,2]
[323788671,1714301457927,-176.4,0.00013972,2]
[323788672,1714301457937,-284.8204219,0.00013972,2]
[323788673,1714301458678,-230.0211009,0.00013972,2]
[323788674,1714301458688,-148.23240886,0.00013972,2]
[323788675,1714301458699,-505.82759114,0.00013972,2]
[323788676,1714301458709,-500.0,0.00013972,2]
[323788677,1714301458719,-648.73821735,0.00013972,2]
[323788678,1714301458755,-306.12178265,0.00013972,2]
[323788679,1714301458764,-678.06,0.00013972,2]
[323788680,1714301458774,-500.0,0.00013972,2]
[323788681,1714301458783,-500.0,0.00013972,2]
[323788682,1714301458793,-500.0,0.00013972,2]
[323788683,1714301458802,-500.0,0.00013972,2]
[323788684,1714301458816,-1289.79,0.00013972,2]
[323788685,1714301458825,-1447.69,0.00013972,2]
[323788686,1714301458834,-500.0,0.00013972,2]
[323788687,1714301458843,-908.29,0.00013972,2]
[323788688,1714301458851,-500.0,0.00013972,2]
[323788689,1714301458860,-500.0,0.00013972,2]
[323788690,1714301458869,-500.0,0.00013972,2]
[323788691,1714301458877,-38.97425626,0.00013972,2]
[323788692,1714301537570,220.60643766,8.116e-05,2]
[323788693,1714301538622,220.60643767,9.118e-05,2]
[323788706,1714301641086,15302.76330635,0.0001,2]
[2,1714308405621,19464.44607681,0.0001,2]
[3,1714308415447,154.26772232,9.999e-05,2]
[5,1714308421416,150.01,9.999e-05,2]
[7,1714308425609,158.52544463,9.999e-05,2]
[173,1714308744505,3000.0,0.0001,2]
[175,1714308792394,1238.87407,0.0001,2]
[193,1714308831908,500.0,9.92e-05,2]
[195,1714308835263,2500.0,0.0001,2]
[197,1714308865455,-641.79865261,0.00010956,2]
[199,1714308865495,-1777.47765708,0.00010957,2]
[201,1714308865536,-150.0,0.00010958,2]
[203,1714308865577,-1000.0,0.00010959,2]
[205,1714308865618,-1000.0,0.00010959,2]
[207,1714308865658,-200.0,0.00011,2]
[209,1714308865697,-159.87362637,0.00012537,2]
[211,1714308865737,-200.0,0.00012744,2]
[213,1714308865776,-169293.941,0.000128,2]
[215,1714308865816,-158.92852532,0.00012895,2]
[217,1714308865856,-1874.0887,0.000129,2]
[219,1714308865896,-3728.411,0.000129,2]
[221,1714308865937,-245000.0,0.000129,2]
[223,1714308865977,-73291.3308,0.000129,2]
[225,1714308866016,-25737.7638,0.000129,2]
[227,1714308866074,-43089.2087,0.000129,2]
[229,1714308866123,-223.0,0.000129,2]
[231,1714308866165,-151365.66936747,0.00013,2]
[233,1714308866209,-499.99,0.00013,2]
[235,1714308866252,-300.62,0.00013471,2]
[237,1714308866295,-419.34,0.00013471,2]
[239,1714308866340,-197.58977563,0.00013596,2]
[241,1714308866383,-7500.0,0.00013598,2]
[243,1714308866424,-155.0,0.000136,2]
[245,1714308866467,-565.47204423,0.00013691,2]
[247,1714308881422,7668.55794912,0.0001,2]
[265,1714309134231,-3862.2848,0.00010886,2]
[267,1714309134276,-155.0,0.00011292,2]
[275,1714309646212,153.56915748,3.229e-05,2]
[299,1714310022346,500.0,3.202e-05,2]
[301,1714310023137,500.0,3.203e-05,2]
[319,1714310623983,60100.57912192,9.557e-05,2]
[323,1714310695208,173.59259,0.0001,2]
[327,1714310751930,-500000.0,0.00014781,7]
[329,1714310781545,173.59259,0.0001,2]
[331,1714310824465,2083.33333,0.0001,2]
[333,1714310861460,402.92,0.00010247,2]
[334,1714310867256,173.59259,0.00010247,2]
[335,1714310910118,1736.11111,0.00010247,2]
[341,1714310953030,173.59259189,0.00010247,2]
[361,1714311222536,500.0,0.00010165,2]
[363,1714311365045,-2186.53327303,0.0001052,2]
[367,1714311725492,986.23672697,0.0001052,2]
[391,1714312415068,500.0,0.00010435,2]
[395,1714312433308,619.72124054,0.00010449,2]
[397,1714312497350,25.71810249,9.694e-05,2]
[403,1714312744803,150.01,0.00010519,2]
[407,1714312790910,150.01,0.00010519,2]
[409,1714312820332,150.01,0.00010519,2]
[411,1714312840239,150.01,0.00010519,2]
[413,1714312850723,150.01,0.00010519,2]
[415,1714312860232,150.01,0.00010519,2]
[421,1714313082853,1156.57603033,0.0001052,2]
[423,1714313083737,2186.53327303,0.0001052,2]
[425,1714313195871,18.73564372,0.0001052,2]
[463,1714313624228,500.0,0.00010436,2]
[489,1714313943719,697.70412,0.0001052,2]
[490,1714314069865,362.65,9.38e-05,2]
[492,1714314388753,201.92529628,0.0001052,2]
[493,1714314388774,379.49480372,0.0001052,2]
[633,1714314546504,344.51,9.153e-05,2]
[638,1714314710575,10713.44258879,0.000251,120]
[645,1714314821836,500.0,9.08e-05,2]
[649,1714315023902,266.49539033,0.000251,120]
[650,1714315026013,327.28,9.185e-05,2]
[651,1714315195594,492.0,0.00025,120]
[652,1714315247129,-4000.0,0.0001056,2]
[653,1714315248037,-4000.0,0.0001056,2]
[654,1714315248983,-4000.0,0.0001056,2]
[655,1714315250261,-618.02434194,0.0001056,2]
[656,1714315288881,3381.97565806,0.00010554,2]
[657,1714315288902,4000.0,0.00010554,2]
[658,1714315288923,4000.0,0.00010554,2]
[659,1714315288947,3768.71662774,0.00010554,2]
[665,1714315528539,447.48,0.00010441,2]
[666,1714315532632,447.48,0.00010441,2]
[668,1714315561091,514.6479241,0.0001046,2]
[669,1714315561113,4000.0,0.0001046,2]
[670,1714315561133,4000.0,0.0001046,2]
[671,1714315561154,4000.0,0.0001046,2]
[672,1714315561179,43678.98481568,0.0001046,2]
[674,1714315607810,378.79,8.588e-05,2]
[705,1714315656856,3406.47,0.00010448,2]
[707,1714315674568,-150.0,0.00010521,2]
[708,1714315674592,-6850.0,0.00010535,2]
[710,1714315679747,166.35,0.00010424,2]
[711,1714315712252,-4000.0,0.00010533,2]
[713,1714315742260,500.0,0.0001026,2]
[715,1714315754064,250.0,0.0001027,2]
[717,1714315842402,164.84,0.0001009,2]
[719,1714315915717,581.4201,0.000105,2]
[723,1714315983017,150.0,0.00010427,2]
[725,1714315983107,150.0,0.00010311,2]
[727,1714315983214,150.0,0.0001048,2]
[729,1714315983293,150.0,0.00010357,2]
[731,1714315983455,150.0,0.00010353,2]
[733,1714315983728,150.0,0.00010496,2]
[735,1714315983900,150.0,0.00010363,2]
[737,1714315984025,150.0,0.00010384,2]
[739,1714315986622,152.92,0.00010057,2]
[741,1714315986985,152.92,0.0001007,2]
[743,1714315987581,152.92,0.00010082,2]
[745,1714315987859,152.92,0.00010095,2]
[749,1714316024877,500.0,0.00010301,2]
[753,1714316103755,150.0,0.00010454,2]
[755,1714316120806,359.85,8.219e-05,2]
[757,1714316164637,302.27189153,0.00010487,2]
[759,1714316179901,-4000.0,0.0001051,2]
[761,1714316181447,-4000.0,0.0001051,2]
[763,1714316232797,1493.87076201,0.00010486,2]
[765,1714316292151,446.21970251,0.0001037,2]
[767,1714316333788,196.24,9.897e-05,2]
[768,1714316337202,164.84,9.972e-05,2]
[769,1714316340642,400.0,9.989e-05,2]
[770,1714316393431,12618.02434194,0.000105,2]
[771,1714316412899,1211.30074394,0.000105,2]
[772,1714316419047,957.81,0.00010044,2]
[774,1714316465546,12618.02434194,0.000105,2]
[775,1714316479671,-2186.53327303,0.00010501,2]
[776,1714316479695,-150.0,0.00010511,2]
[777,1714316479720,-150.0,0.00010516,2]
[778,1714316479743,-150.0,0.00010522,2]
[779,1714316479764,-1363.46672697,0.00010539,2]
[780,1714316480165,-719.81121063,0.00010539,2]
[781,1714316480187,-264.162403,0.00010539,2]
[782,1714316480209,-501.767463,0.00010539,2]
[783,1714316480231,-501.767463,0.00010539,2]
[784,1714316480253,-300.73218058,0.0001054,2]
[785,1714316480274,-414.45622206,0.00010545,2]
[786,1714316480295,-1297.30305773,0.00010545,2]
[787,1714316482051,-4000.0,0.00010545,2]
[788,1714316482908,-4000.0,0.00010545,2]
[789,1714316483568,-702.68694227,0.00010545,2]
[790,1714316483590,-3297.31305773,0.00010545,2]
[791,1714316527622,581.4201,0.000105,2]
[793,1714316619318,-2186.53327303,0.00010531,2]
[794,1714316619340,-1813.46672697,0.00010532,2]
[795,1714316621830,331.48,8.219e-05,2]
[797,1714316642983,150.0,0.00010441,2]
[798,1714316643047,150.0,0.00010438,2]
[799,1714316643093,150.0,0.00010381,2]
[801,1714316643509,150.0,0.00010414,2]
[802,1714316643574,150.0,0.00010427,2]
[803,1714316712344,1500.0,0.00010363,2]
[805,1714316786915,30000.0,0.0001,2]